{"text_format":"1","workbook":"xlsx","n_sheets":6,"sheets":["基本情報","基本情報2","端末SIM情報","list","変換","改版履歴"],"not_rendered":{"charts":0,"images":1,"macros":1,"external_links":1,"defined_names":249,"comments":2,"pivot_tables":0},"unopened":[],"bounds":{"document_bytes":16777216,"sheet_cells":100000,"rows_first":2000,"rows_last":500,"rows_between":2000,"halvings":0,"cell_chars":16384,"cell_head_chars":4096},"cells_cut":0,"cells_raw":0,"read":"whole","date_system":"1900"}

{"sheet":"基本情報","index":0,"n_rows":93,"n_cols":62,"rows_kept":93,"cut":false,"hidden":false,"merged":[[4,1,5,51],[12,1,12,51],[6,1,7,51],[8,1,9,51],[10,1,10,51],[79,0,79,51],[87,0,87,51],[3,0,3,51],[14,0,14,51],[30,13,30,32],[31,13,31,32],[32,13,32,32],[17,0,17,12],[18,0,18,12],[22,0,22,12],[21,0,21,12],[25,0,25,12],[27,0,27,12],[24,0,24,51],[19,13,19,32],[20,13,20,32],[19,6,19,12],[19,0,20,5],[20,6,20,12],[18,13,18,32],[21,13,21,32],[22,13,22,32],[25,13,25,32],[15,0,15,51],[37,13,37,32],[38,13,38,32],[28,0,28,12],[29,0,29,51],[30,0,33,5],[33,6,33,12],[32,6,32,12],[28,42,28,51],[27,38,28,41],[28,13,28,37],[27,13,27,37],[16,0,16,12],[35,0,38,5],[35,6,35,12],[36,6,36,12],[37,6,37,12],[31,6,31,12],[30,6,30,12],[34,0,34,51],[60,0,61,5],[69,33,69,51],[65,6,65,12],[66,6,66,12],[71,0,71,12],[74,0,74,12],[75,0,75,12],[77,0,77,12],[73,0,73,51],[74,13,74,32],[75,13,75,32],[76,13,76,32],[77,13,77,32],[74,33,74,51],[75,33,75,51],[76,33,76,51],[76,0,76,12],[62,0,69,5],[1,40,1,43],[1,27,1,30],[16,13,16,32],[17,13,17,32],[80,6,80,12],[67,8,67,12],[68,8,68,12],[69,8,69,12],[67,6,69,7],[70,0,70,51],[48,13,48,32],[2,0,2,51],[44,13,44,32],[41,33,41,51],[42,33,42,51],[43,33,43,51],[44,33,44,51],[48,33,48,51],[49,33,49,51],[50,33,50,51],[53,33,53,51],[49,13,49,32],[50,13,50,32],[51,13,51,32],[85,6,85,12],[81,6,81,12],[84,6,84,12],[83,6,83,12],[82,6,82,12],[71,13,71,51],[62,6,62,12],[63,6,63,12],[64,6,64,12],[48,0,48,12],[47,0,47,12],[45,0,45,51],[47,13,47,32],[47,33,47,51],[55,13,55,32],[56,6,56,12],[57,6,57,12],[56,0,57,5],[46,0,46,51],[52,13,52,32],[53,13,53,32],[54,13,54,32],[55,6,55,12],[49,0,55,5],[49,6,49,12],[50,6,50,12],[51,6,51,12],[52,6,52,12],[53,6,53,12],[54,6,54,12],[92,13,92,32],[16,33,16,51],[17,33,17,51],[18,33,18,51],[21,33,21,51],[22,33,22,51],[25,33,25,51],[30,33,30,51],[31,33,31,51],[32,33,32,51],[33,33,33,51],[35,33,35,51],[36,33,36,51],[85,13,85,32],[86,13,86,32],[88,13,88,32],[89,13,89,32],[58,0,58,51],[60,6,60,12],[61,6,61,12],[56,13,56,32],[57,13,57,32],[60,13,60,32],[61,13,61,32],[26,0,26,51],[43,6,43,12],[44,6,44,12],[40,0,44,5],[40,13,40,32],[41,13,41,32],[42,13,42,32],[43,13,43,32],[38,6,38,12],[39,0,39,51],[40,6,40,12],[41,6,41,12],[42,6,42,12],[33,13,33,32],[35,13,35,32],[36,13,36,32],[27,42,27,51],[1,44,1,51],[1,31,1,39],[90,33,90,51],[91,33,91,51],[37,33,37,51],[38,33,38,51],[19,33,19,51],[20,33,20,51],[40,33,40,51],[62,33,62,51],[63,33,63,51],[54,33,54,51],[55,33,55,51],[90,13,90,32],[80,13,80,32],[81,13,81,32],[82,13,82,32],[83,13,83,32],[64,33,64,51],[65,33,65,51],[56,33,56,51],[57,33,57,51],[60,33,60,51],[51,33,51,51],[92,33,92,51],[84,33,84,51],[85,33,85,51],[86,33,86,51],[88,33,88,51],[89,33,89,51],[77,33,77,51],[80,33,80,51],[81,33,81,51],[82,33,82,51],[83,33,83,51],[91,13,91,32],[84,13,84,32],[65,13,65,32],[66,13,66,32],[67,13,67,32],[68,13,68,32],[69,13,69,32],[52,33,52,51],[61,33,61,51],[62,13,62,32],[63,13,63,32],[64,13,64,32],[66,33,66,51],[67,33,67,51],[68,33,68,51],[59,0,59,51],[80,0,86,5],[88,6,88,12],[88,0,92,5],[89,6,89,12],[90,6,90,12],[91,6,91,12],[92,6,92,12],[86,6,86,12]]}
[null,null,null,null,null,null,null,null,null,null,null,null,null,null,null,null,null,null,null,null,null,null,null,null,null,null,null,null,null,null,null,null,null,null,null,null,null,null,null,null,null,null,null,null,null,null,null,null,null,null,null,{"$f":"CONCATENATE(BG1,BH1,BI1,BJ1)","v":"Ver.1.00A(2020/3/19)"},null,null,"サービス",4,"OCNモバイルOne",null,"Ver.","1.00","A","(2020/3/19)"]
[null,null,null,null,null,null,null,null,null,null,null,null,null,null,null,null,null,null,null,null,null,null,null,null,null,null,null,"オーダ管理番号",null,null,null,null,null,null,null,null,null,null,null,null,"オーダ登録番号",null,null,null,null,null,null,null,null,null,null,null,null,null,"異動種別","新設"]
["第６種オープンコンピュータ通信網サービス　契約申込書\nOCN モバイル ONE for Business"]
[{"$f":"IF(__\\osManabiPocketFlg=1,\"＜まなびポケット対応版＞\",IF(__\\osOpenInfoCsvWishUmuCd=1,\"＜ご利用案内CSV対応版＞\",\"\"))","v":""}]
["レ","NTTコミュニケーションズ株式会社の定める｢IP通信網サービス契約約款（https://www.ntt.com/about-us/disclosure/tariff/yakkan/ip.html）｣｢重要事項に関する説明｣｢各種利用規約｣の内容について承諾の上、下記のとおり申し込みます｡個人情報の取扱いについては、「プライバシーポリシー（https://www.ntt.com/about-us/hp/privacy.html）」の内容を承諾します。"]
[]
["レ","OCN モバイル ONE for Businessは常時高トラフィックが発生するようなご利用には適しません。デジタルサイネージ・Web会議のように、常時高トラフィックを必要とする利用方法で、他のお客様の通信に支障が出る利用をされる場合には、OCN モバイル ONE for Businessの利用をご遠慮いただく場合があります。"]
[]
["レ","お客さまは、本サービスで提供するアプリケーション及びアプリケーションに使用されている技術（以下アプリケーション等）を、直接的であれ間接的であれ、海外に輸出若しくは持ち出す場合又は日本国の非居住者に譲渡、貸与若しくは提供する場合は、外為法等及び米国輸出管理規則を遵守するものとし、適正な政府の許可を取得する等の適切な手続きを行うものとします。"]
[]
["レ","お客さまは、アプリケーション等を外為法等に定める核兵器を含む大量破壊兵器、通常兵器等の開発、製造、使用のために利用しないものとします。"]
[]
[null,"※必ずチェックを入れてください。チェックがない場合はお申込みいただけません。"]
[]
["お申込情報"]
["■ご注意\n※お申込み後の取り消しはできません。また端末発送後(ご利用開始希望日の概ね5営業日前)にお申込み内容の変更はできません。\n※ビジネスパックをご利用の場合、ご利用開始日の12営業日前以降での、お申込み内容の変更はできません。"]
["お申込種別（必須）",null,null,null,null,null,null,null,null,null,null,null,null,"新設",null,null,null,null,null,null,null,null,null,null,null,null,null,null,null,null,null,null,null,"選択してください"]
["お申込年月日（必須）",null,null,null,null,null,null,null,null,null,null,null,null,null,null,null,null,null,null,null,null,null,null,null,null,null,null,null,null,null,null,null,null,"YYYY/MM/DD（半角）"]
["開通希望年月日（必須）",null,null,null,null,null,null,null,null,null,null,null,null,null,null,null,null,null,null,null,null,null,null,null,null,null,null,null,null,null,null,null,null,"YYYY/MM/DD（半角）\n※ご利用開始希望日には、申込みいただく日付から5営業日目以降の土日祝日を除く日付を記入いただきます。\n※ 申込内容に不備等があった場合には、ご利用開始希望日の延期をお願いする場合がございますので、ご了承ください。\n※ビジネスパックのご利用がある場合、ご利用開始希望日には申込みいただく日付から18営業日目以降の土日祝日を除く日付を記入いただきます。\n※手続き上、お客様のご利用開始希望日に添えない場合があります。"]
["お申込サービス",null,null,null,null,null,"認証方式\n（必須）",null,null,null,null,null,null,"個別ID",null,null,null,null,null,null,null,null,null,null,null,null,null,null,null,null,null,null,null,"選択してください\n※NW接続用の認証IDを全端末共通でご利用される場合は「共通ID」を、端末ごとに別々でご利用される場合には「個別ID」を選択してください。"]
[null,null,null,null,null,null,"サービスメニュー\n（必須）",null,null,null,null,null,null,"総量規制サービス",null,null,null,null,null,null,null,null,null,null,null,null,null,null,null,null,null,null,null,"選択してください",null,null,null,null,null,null,null,null,null,null,null,null,null,null,null,null,null,null,null,null,null,null,"サービスメニュー\n【リスト】",{"$f":"IF($N$20=\"個別ID\",\"serviceMenu_3\",IF(__\\osManabiPocketFlg=2,\"serviceMenu_2\",\"serviceMenu_1\"))","v":"serviceMenu_3"}]
["モバイル代表契約番号\n（端末追加）（必須）",null,null,null,null,null,null,null,null,null,null,null,null,null,null,null,null,null,null,null,null,null,null,null,null,null,null,null,null,null,null,null,null,"半角大文字N＋半角数字9桁で記入してください。",null,null,null,null,null,null,null,null,null,null,null,null,null,null,null,null,null,null,null,null,"代表契約番号\n【条件付き書式】",{"$f":"$N$17<>\"新設\"","v":false}]
["お客さま番号（記入不要）"]
[]
["共通顧客ID"]
["共通顧客ID（必須）",null,null,null,null,null,null,null,null,null,null,null,null,"C1234567890",null,null,null,null,null,null,null,null,null,null,null,null,null,null,null,null,null,null,null,"半角大文字C＋半角数字10桁で記入してください。"]
["ご契約者名"]
["フリガナ（必須）",null,null,null,null,null,null,null,null,null,null,null,null,null,null,null,null,null,null,null,null,null,null,null,null,null,null,null,null,null,null,null,null,null,null,null,null,null,null,null,null,null,"全角35桁以内"]
["ご契約者名（必須）",null,null,null,null,null,null,null,null,null,null,null,null,null,null,null,null,null,null,null,null,null,null,null,null,null,null,null,null,null,null,null,null,null,null,null,null,null,null,null,null,null,"全角40桁以内\n※正式名称を40文字以内でご記入いただきますが、弊社の都合により、名称を省略させていただくことがありますので、ご了承ください。"]
["ご契約者住所"]
["ご契約者住所",null,null,null,null,null,"郵便番号（必須）",null,null,null,null,null,null,null,null,null,null,null,null,null,null,null,null,null,null,null,null,null,null,null,null,null,null,"半角数字7桁固定"]
[null,null,null,null,null,null,"ご住所（必須）",null,null,null,null,null,null,null,null,null,null,null,null,null,null,null,null,null,null,null,null,null,null,null,null,null,null,"全角46桁以内\n※住所を都道府県からご記入ください。"]
[null,null,null,null,null,null,"番地等（必須）",null,null,null,null,null,null,null,null,null,null,null,null,null,null,null,null,null,null,null,null,null,null,null,null,null,null,"全角20桁以内"]
[null,null,null,null,null,null,"ビル名等",null,null,null,null,null,null,null,null,null,null,null,null,null,null,null,null,null,null,null,null,null,null,null,null,null,null,"全角20桁以内"]
["事務担当者＜お申込みに関するご連絡先＞"]
["事務担当者",null,null,null,null,null,"部課名",null,null,null,null,null,null,null,null,null,null,null,null,null,null,null,null,null,null,null,null,null,null,null,null,null,null,"全角20桁以内"]
[null,null,null,null,null,null,"担当者名（必須）",null,null,null,null,null,null,null,null,null,null,null,null,null,null,null,null,null,null,null,null,null,null,null,null,null,null,"全角10桁以内"]
[null,null,null,null,null,null,"電話番号（必須）",null,null,null,null,null,null,null,null,null,null,null,null,null,null,null,null,null,null,null,null,null,null,null,null,null,null,"ハイフンを含む半角10桁～13桁\n（数字、ハイフンのみ）"]
[null,null,null,null,null,null,"e-mail（必須）",null,null,null,null,null,null,null,null,null,null,null,null,null,null,null,null,null,null,null,null,null,null,null,null,null,null,"半角英数64桁以内\n※ご契約に関する連絡用として、既存のメールアドレスをご記入ください。\n※ご担当者が複数の場合は、カンマで区切りで記入ください。\n※メールアドレスをお持でない方は「a@a」をご記入ください。"]
["技術担当者情報"]
["技術担当者",null,null,null,null,null,"コピーリスト（必須）",null,null,null,null,null,null,null,null,null,null,null,null,null,null,null,null,null,null,null,null,null,null,null,null,null,null,"選択してください",null,null,null,null,null,null,null,null,null,null,null,null,null,null,null,null,null,null,null,null,"技術担当者コピーリスト\n【条件付き書式】",{"$f":"OR($N$41=\"\",$N$41=\"次のとおり\")","v":true}]
[null,null,null,null,null,null,"担当者名（必須）",null,null,null,null,null,null,null,null,null,null,null,null,null,null,null,null,null,null,null,null,null,null,null,null,null,null,"全角10桁以内"]
[null,null,null,null,null,null,"電話番号（必須）",null,null,null,null,null,null,null,null,null,null,null,null,null,null,null,null,null,null,null,null,null,null,null,null,null,null,"ハイフンを含む半角10桁～13桁\n（数字、ハイフンのみ）"]
[null,null,null,null,null,null,"FAX番号",null,null,null,null,null,null,null,null,null,null,null,null,null,null,null,null,null,null,null,null,null,null,null,null,null,null,"ハイフンを含む半角10桁～13桁\n（数字、ハイフンのみ）"]
[null,null,null,null,null,null,"e-mail（必須）",null,null,null,null,null,null,null,null,null,null,null,null,null,null,null,null,null,null,null,null,null,null,null,null,null,null,"半角英数64桁以内\n※ご担当者が複数の場合は、カンマで区切りで記入ください。\n※メールアドレスをお持ちでない方は「a@a」をご記入ください。"]
["お支払に関する情報",null,null,null,null,null,null,null,null,null,null,null,null,null,null,null,null,null,null,null,null,null,null,null,null,null,null,null,null,null,null,null,null,null,null,null,null,null,null,null,null,null,null,null,null,null,null,null,null,null,null,null,null,null,"請求情報カテゴリ\n【条件付き書式】",{"$f":"$N$17<>\"端末追加\"","v":true}]
["■ご注意\n【口座振替及びクレジットカードでのお支払】をご希望のお客さま\n　※「請求書によるお支払」をご選択いただき、ビリングカスタマセンタ（TEL：0120-047128）までご連絡下さい。\n　　弊社より口座振替によるお支払をご希望のお客さまは「口座振替依頼書」、クレジットカードでのお支払をご希望のお客さまは「クレジットカード払い申込書」を送付いたします。\n　※初回のご請求は「請求書によるお支払」になる場合があります。\n\n【既契約のお支払情報と同一にする】をご希望のお客さま\n　※引継ぎ元の請求がファイナンス社の場合は対象外となります。\n　※OCN利用料をフレッツ光利用料と合わせて、お支払いただいているお客さまはご利用いただけません。\n　※現在、ご利用中のサービスのお支払情報と同一にします。（但し、ご契約者名義が同一の場合のみ）\n　※複数の請求を一枚にまとめている場合もお支払情報を同一にします。\n　※お支払情報に関するお知らせの送付先は既契約と同一になります。"]
["支払方法（必須）",null,null,null,null,null,null,null,null,null,null,null,null,null,null,null,null,null,null,null,null,null,null,null,null,null,null,null,null,null,null,null,null,"選択してください"]
["既契約のお客さま番号\n（既契約のお支払情報と同一にする）（必須）",null,null,null,null,null,null,null,null,null,null,null,null,null,null,null,null,null,null,null,null,null,null,null,null,null,null,null,null,null,null,null,null,"ＨまたはＮからはじまる10桁のお客さま番号をご記入ください。",null,null,null,null,null,null,null,null,null,null,null,null,null,null,null,null,null,null,null,null,"既契約のお客さま番号\n【条件付き書式】",{"$f":"$N$48<>\"請求書によるお支払\"","v":true}]
["毎月の利用料の\n請求先",null,null,null,null,null,"コピーリスト（必須）",null,null,null,null,null,null,null,null,null,null,null,null,null,null,null,null,null,null,null,null,null,null,null,null,null,null,"選択してください",null,null,null,null,null,null,null,null,null,null,null,null,null,null,null,null,null,null,null,null,"請先コピーリスト\n【条件付き書式】",{"$f":"$N$48<>\"既契約のお支払情報と同一にする\"","v":true}]
[null,null,null,null,null,null,"郵便番号（必須）",null,null,null,null,null,null,null,null,null,null,null,null,null,null,null,null,null,null,null,null,null,null,null,null,null,null,"半角数字7桁固定",null,null,null,null,null,null,null,null,null,null,null,null,null,null,null,null,null,null,null,null,"請先\n郵便番号～ビル名\n【条件付き書式】",{"$f":"AND($BD$50=TRUE,OR($N$50=\"次のとおり\",$N$50=\"\"))","v":true}]
[null,null,null,null,null,null,"ご住所（必須）",null,null,null,null,null,null,null,null,null,null,null,null,null,null,null,null,null,null,null,null,null,null,null,null,null,null,"全角46桁以内\n※住所を都道府県からご記入ください。"]
[null,null,null,null,null,null,"番地等（必須）",null,null,null,null,null,null,null,null,null,null,null,null,null,null,null,null,null,null,null,null,null,null,null,null,null,null,"全角20桁以内"]
[null,null,null,null,null,null,"ビル名等",null,null,null,null,null,null,null,null,null,null,null,null,null,null,null,null,null,null,null,null,null,null,null,null,null,null,"全角20桁以内"]
[null,null,null,null,null,null,"宛先　お名前フリガナ\n（必須）",null,null,null,null,null,null,null,null,null,null,null,null,null,null,null,null,null,null,null,null,null,null,null,null,null,null,"全角30桁以内",null,null,null,null,null,null,null,null,null,null,null,null,null,null,null,null,null,null,null,null,"請先宛先/連絡先\n【条件付き書式】",{"$f":"$N$48<>\"既契約のお支払情報と同一にする\"","v":true}]
[null,null,null,null,null,null,"宛先　お名前\n（必須）",null,null,null,null,null,null,null,null,null,null,null,null,null,null,null,null,null,null,null,null,null,null,null,null,null,null,"全角20桁以内\n※宛先に記入いただいた内容は、そのまま請求書に印刷されます。会社名・部署名・氏名等をご記入ください。　"]
["請求に関する連絡先",null,null,null,null,null,"お名前",null,null,null,null,null,null,null,null,null,null,null,null,null,null,null,null,null,null,null,null,null,null,null,null,null,null,"全角10桁以内\n※請求書の宛先には表示されません。"]
[null,null,null,null,null,null,"電話番号",null,null,null,null,null,null,null,null,null,null,null,null,null,null,null,null,null,null,null,null,null,null,null,null,null,null,"ハイフンを含む半角10桁～13桁\n（数字、ハイフンのみ）"]
["ご利用案内に関する情報　　　　※接続に必要となる情報をOCNより送付します。"]
["■ご注意\n※「ご利用内容のご案内」メールは、「customer@info.ocn.ne.jp」から届きますので、メール受信設定いただきますようお願いいたします。\n※「ご利用内容のご案内」は、メールにて送信されるURLから専用サイトへアクセスし、確認パスワードを入力することで、閲覧/保存出来ます。\n※メールにてお届けできない場合の送付先に関しても必ずご記入下さい。\n※送信したメールが届かなかった場合は、郵送にてお送りいたしますが、開通日に間に合わない場合がありますので、ご注意願います。"]
["ご利用案内の送信先",null,null,null,null,null,"送信先メールアドレス\n（必須）",null,null,null,null,null,null,null,null,null,null,null,null,null,null,null,null,null,null,null,null,null,null,null,null,null,null,"半角英数64桁以内\n※メールアドレスをお持ちでない場合は、記入不要です。(郵送にて送付いたします)\n※複数のメールアドレスを指定することはできません。複数アドレスを指定する場合は、メーリングリストにてお申込ください。\n※携帯電話のメールアドレスは指定できません。"]
[null,null,null,null,null,null,"ご利用案内\n確認パスワード\n（必須）",null,null,null,null,null,null,null,null,null,null,null,null,null,null,null,null,null,null,null,null,null,null,null,null,null,null,"半角英数8桁～10桁以内\n（英大文字、英小文字、数字からそれぞれ1文字以上使用してください）\n※「ご利用内容のご案内」専用サイトにログインする際に本パスワードが必要となりますので、ご案内のメールが届くまで必ず保管願います。\n※メールアドレスをお持ちでない場合は、記入不要です。(郵送にて送付いたします)"]
["ご利用案内の送付先\n\n\n\n※メールにてお届けできない場合、郵送させていただきます。",null,null,null,null,null,"コピーリスト（必須）",null,null,null,null,null,null,null,null,null,null,null,null,null,null,null,null,null,null,null,null,null,null,null,null,null,null,"選択してください",null,null,null,null,null,null,null,null,null,null,null,null,null,null,null,null,null,null,null,null,null,null,"開案送付先\nｺﾋﾟｰリスト\n【リスト】",{"$f":"IF($N$50=\"次のとおり\",\"kaianMailingAddressCopylist_1\",\"kaianMailingAddressCopylist_2\")","v":"kaianMailingAddressCopylist_2"}]
[null,null,null,null,null,null,"郵便番号（必須）",null,null,null,null,null,null,null,null,null,null,null,null,null,null,null,null,null,null,null,null,null,null,null,null,null,null,"半角数字7桁固定",null,null,null,null,null,null,null,null,null,null,null,null,null,null,null,null,null,null,null,null,"開案送付先\n郵便番号～ビル名\n【条件付き書式】",{"$f":"AND(OR($N$63=\"次のとおり\",$N$63=\"\"))","v":true}]
[null,null,null,null,null,null,"ご住所（必須）",null,null,null,null,null,null,null,null,null,null,null,null,null,null,null,null,null,null,null,null,null,null,null,null,null,null,"全角46桁以内\n※住所を都道府県からご記入ください。"]
[null,null,null,null,null,null,"番地等（必須）",null,null,null,null,null,null,null,null,null,null,null,null,null,null,null,null,null,null,null,null,null,null,null,null,null,null,"全角20桁以内"]
[null,null,null,null,null,null,"ビル名等",null,null,null,null,null,null,null,null,null,null,null,null,null,null,null,null,null,null,null,null,null,null,null,null,null,null,"全角20桁以内"]
[null,null,null,null,null,null,"宛先",null,"会社名/お名前\n（必須）",null,null,null,null,null,null,null,null,null,null,null,null,null,null,null,null,null,null,null,null,null,null,null,null,"全角20桁以内"]
[null,null,null,null,null,null,null,null,"部課名",null,null,null,null,null,null,null,null,null,null,null,null,null,null,null,null,null,null,null,null,null,null,null,null,"全角20桁以内"]
[null,null,null,null,null,null,null,null,"担当者名",null,null,null,null,null,null,null,null,null,null,null,null,null,null,null,null,null,null,null,null,null,null,null,null,"全角10桁以内"]
["お客様ご要望記事欄"]
["お客様ご要望記事欄"]
[]
["弊社記入欄"]
["料金に関する留意事項（必須）",null,null,null,null,null,null,null,null,null,null,null,null,"無",null,null,null,null,null,null,null,null,null,null,null,null,null,null,null,null,null,null,null,"選択してください"]
["ＮＰＣＲＭ承認ＩＤ枝番",null,null,null,null,null,null,null,null,null,null,null,null,null,null,null,null,null,null,null,null,null,null,null,null,null,null,null,null,null,null,null,null,"半角15桁以内"]
["サブプロジェクトＩＤ",null,null,null,null,null,null,null,null,null,null,null,null,null,null,null,null,null,null,null,null,null,null,null,null,null,null,null,null,null,null,null,null,"半角15桁以内"]
["回線種別（必須）",null,null,null,null,null,null,null,null,null,null,null,null,"法人",null,null,null,null,null,null,null,null,null,null,null,null,null,null,null,null,null,null,null,"選択してください"]
[]
["お客様対応部門"]
["お客様対応部門",null,null,null,null,null,"販売チャネルコード\n（必須）",null,null,null,null,null,null,"77J00000",null,null,null,null,null,null,null,null,null,null,null,null,null,null,null,null,null,null,null,"半角英数字８桁"]
[null,null,null,null,null,null,"販売チャネル名\n（必須）",null,null,null,null,null,null,"㈱エヌディエステレコム",null,null,null,null,null,null,null,null,null,null,null,null,null,null,null,null,null,null,null,"全角16桁以内"]
[null,null,null,null,null,null,"担当者（必須）",null,null,null,null,null,null,"上田",null,null,null,null,null,null,null,null,null,null,null,null,null,null,null,null,null,null,null,"全角10桁以内"]
[null,null,null,null,null,null,"社員コード ",null,null,null,null,null,null,null,null,null,null,null,null,null,null,null,null,null,null,null,null,null,null,null,null,null,null,"半角英数字8桁以内"]
[null,null,null,null,null,null,"電話番号（必須）",null,null,null,null,null,null,"0120-881-444",null,null,null,null,null,null,null,null,null,null,null,null,null,null,null,null,null,null,null,"ハイフンを含む半角10桁～13桁\n（数字、ハイフンのみ）"]
[null,null,null,null,null,null,"ＦＡＸ番号 ",null,null,null,null,null,null,"0120-788-622",null,null,null,null,null,null,null,null,null,null,null,null,null,null,null,null,null,null,null,"ハイフンを含む半角10桁～13桁\n（数字、ハイフンのみ）"]
[null,null,null,null,null,null,"ｅ-mail（必須）",null,null,null,null,null,null,"info@vpn-mobile.com",null,null,null,null,null,null,null,null,null,null,null,null,null,null,null,null,null,null,null,"半角英数64桁以内"]
["お申込受付部門"]
["お申込受付部門",null,null,null,null,null,"担当者（必須）",null,null,null,null,null,null,"上田",null,null,null,null,null,null,null,null,null,null,null,null,null,null,null,null,null,null,null,"全角10桁以内"]
[null,null,null,null,null,null,"組織名（必須）",null,null,null,null,null,null,"㈱エヌディエステレコム",null,null,null,null,null,null,null,null,null,null,null,null,null,null,null,null,null,null,null,"全角20桁以内"]
[null,null,null,null,null,null,"電話番号（必須）",null,null,null,null,null,null,"0120-881-444",null,null,null,null,null,null,null,null,null,null,null,null,null,null,null,null,null,null,null,"ハイフンを含む半角10桁～13桁\n（数字、ハイフンのみ）"]
[null,null,null,null,null,null,"ＦＡＸ番号 ",null,null,null,null,null,null,"0120-788-622",null,null,null,null,null,null,null,null,null,null,null,null,null,null,null,null,null,null,null,"ハイフンを含む半角10桁～13桁\n（数字、ハイフンのみ）"]
[null,null,null,null,null,null,"ｅ-mail（必須）",null,null,null,null,null,null,"info@vpn-mobile.com",null,null,null,null,null,null,null,null,null,null,null,null,null,null,null,null,null,null,null,"半角英数64桁以内"]

{"sheet":"基本情報2","index":1,"n_rows":34,"n_cols":58,"rows_kept":34,"cut":false,"hidden":false,"merged":[[4,0,4,51],[7,13,7,22],[7,27,7,32],[6,13,6,32],[10,14,10,28],[6,33,6,51],[7,33,7,51],[7,23,7,26],[5,0,5,12],[8,33,8,51],[9,13,9,32],[9,33,9,51],[8,13,8,22],[8,23,8,26],[8,27,8,32],[10,33,14,51],[14,30,14,32],[9,0,9,12],[10,0,11,12],[12,0,14,12],[12,30,12,32],[11,30,11,32],[11,14,11,28],[12,14,12,28],[13,14,13,28],[14,14,14,28],[13,30,13,32],[33,33,33,51],[28,13,28,32],[28,33,28,51],[29,13,29,32],[29,33,29,51],[30,13,30,32],[30,33,30,51],[31,33,32,51],[33,13,33,32],[25,6,25,12],[26,6,26,12],[20,33,20,51],[25,0,29,5],[20,6,23,7],[27,6,27,12],[25,33,25,51],[26,13,26,32],[26,33,26,51],[27,13,27,32],[27,33,27,51],[15,0,23,5],[15,6,15,12],[28,6,28,12],[29,6,29,12],[25,13,25,32],[30,0,33,5],[30,6,30,12],[31,6,31,12],[32,6,32,12],[33,6,33,12],[15,33,15,51],[24,0,24,51],[20,8,20,12],[21,8,21,12],[22,8,22,12],[23,8,23,12],[19,6,19,12],[16,33,16,51],[17,13,17,32],[17,33,17,51],[17,6,17,12],[18,6,18,12],[16,6,16,12],[15,13,15,32],[5,13,5,32],[6,0,6,12],[7,0,7,12],[8,0,8,12],[10,30,10,32],[5,33,5,51],[1,0,2,51],[31,13,31,32],[32,13,32,32],[21,13,21,32],[21,33,21,51],[22,13,22,32],[22,33,22,51],[23,13,23,32],[23,33,23,51],[18,13,18,32],[18,33,18,51],[19,13,19,32],[19,33,19,51],[20,13,20,32],[16,13,16,32]]}
[null,null,null,null,null,null,null,null,null,null,null,null,null,null,null,null,null,null,null,null,null,null,null,null,null,null,null,null,null,null,null,null,null,null,null,null,null,null,null,null,null,null,null,null,null,null,null,null,null,null,null,{"$f":"基本情報!$AZ$1","v":"Ver.1.00A(2020/3/19)"}]
[{"$f":"基本情報!$A$3","v":"第６種オープンコンピュータ通信網サービス　契約申込書\nOCN モバイル ONE for Business"}]
[]
[]
["付加サービス情報"]
["ビジネスパック利用有無（必須）",null,null,null,null,null,null,null,null,null,null,null,null,null,null,null,null,null,null,null,null,null,null,null,null,null,null,null,null,null,null,null,null,"選択してください",null,null,null,null,null,null,null,null,null,null,null,null,null,null,null,null,null,null,null,null,null,null,"ビジパク利用有無\n【リスト】",{"$f":"IF(OR(基本情報!$N$21=\"テレワーク・スタートパック\",基本情報!$N$21=\"まなびポケット\"),\"option_2\",IF(基本情報!$N$20=\"共通ID\",\"option_2\",\"option\"))","v":"option"}]
["固定IP利用有無（必須）",null,null,null,null,null,null,null,null,null,null,null,null,null,null,null,null,null,null,null,null,null,null,null,null,null,null,null,null,null,null,null,null,"※固定IPアドレスをご利用される場合には「利用する」を、動的IPアドレスをご利用される場合は「利用しない」を選択してください。",null,null,null,null,null,null,null,null,null,null,null,null,null,null,null,null,null,null,null,null,"固定IP利用有無\n【条件付き書式】",{"$f":"AND(基本情報!$N$20<>\"共通ID\",基本情報!$N$21<>\"テレワーク・スタートパック\",基本情報!$N$21<>\"まなびポケット\")","v":true},"固定IP利用有無\n【リスト】",{"$f":"IF(N6=\"利用する\",\"option_2\",\"option\")","v":"option"}]
["ウイルスバスタービジネスセキュリティ\n利用有無（必須）",null,null,null,null,null,null,null,null,null,null,null,null,null,null,null,null,null,null,null,null,null,null,null,null,null,null,"ライセンス",null,null,null,null,null,"選択してください。\n※「利用する」を選択した場合は、ご利用ライセンス数をご記入下さい。\n※5ライセンス以上、最大99999ライセンスまでお申込みいただけます。\n※ウイルスバスタービジネスセキュリティに関する登録完了通知メールは、ネットワーク技術担当者様のメールアドレス宛に送付致します。",null,null,null,null,null,null,null,null,null,null,null,null,null,null,null,null,null,null,null,null,"VBBS利用有無\n【条件付き書式】",{"$f":"AND(基本情報!$N$17<>\"端末追加\",基本情報!$N$21<>\"まなびポケット\")","v":true},"VBBSライセンス数\n【条件付き書式】",{"$f":"AND(基本情報!$N$17<>\"端末追加\",基本情報!$N$21<>\"まなびポケット\",基本情報2!$N$8<>\"利用しない\")","v":true}]
["OCN IWSaaS利用有無（必須）",null,null,null,null,null,null,null,null,null,null,null,null,null,null,null,null,null,null,null,null,null,null,null,null,null,null,"ライセンス",null,null,null,null,null,"選択してください。\n※「利用する」を選択した場合は、ご利用ライセンス数をご記入下さい。\n※1ライセンス以上、最大99999ライセンスまでお申込みいただけます。\n※OCN IWSaaSサービスに関する登録完了通知メールは、ネットワーク技術担当者様のメールアドレス宛に送付致します。",null,null,null,null,null,null,null,null,null,null,null,null,null,null,null,null,null,null,null,null,"IWSaaS利用有無\n【条件付き書式】",{"$f":"AND(基本情報!$N$17<>\"端末追加\",基本情報!$N$21<>\"テレワーク・スタートパック\",基本情報!$N$21<>\"まなびポケット\")","v":true},"IWSaaSライセンス数\n【条件付き書式】",{"$f":"AND(基本情報!$N$17<>\"端末追加\",基本情報!$N$21<>\"テレワーク・スタートパック\",基本情報!$N$21<>\"まなびポケット\",基本情報2!$N$9<>\"利用しない\")","v":true}]
["料金明細利用有無（必須）",null,null,null,null,null,null,null,null,null,null,null,null,null,null,null,null,null,null,null,null,null,null,null,null,null,null,null,null,null,null,null,null,"※webでの料金明細確認をご希望される場合は「利用する」を、ご希望されない場合は「利用しない」を選択してください。",null,null,null,null,null,null,null,null,null,null,null,null,null,null,null,null,null,null,null,null,"料金明細利用有無\n【条件付き書式】",{"$f":"基本情報!$N$17<>\"端末追加\"","v":true}]
["料金明細サイト閲覧用グローバルＩＰアドレス",null,null,null,null,null,null,null,null,null,null,null,null,1,null,null,null,null,null,null,null,null,null,null,null,null,null,null,null,"/",null,null,null,"※セキュリティ上、お客様が指定されたグローバルIPアドレスのみアクセスを許容するため、必ずご指定願います。\n※固定しない場合（IPアドレスフリーの場合）は、アクセス元グローバルIPアドレスに「0.0.0.0/0」をご記入ください。",null,null,null,null,null,null,null,null,null,null,null,null,null,null,null,null,null,null,null,null,"料金明細用IPアドレス\n【条件付き書式】",{"$f":"AND(基本情報!$N$17<>\"端末追加\",$N$10<>\"利用しない\")","v":true}]
[null,null,null,null,null,null,null,null,null,null,null,null,null,2,null,null,null,null,null,null,null,null,null,null,null,null,null,null,null,"/"]
[null,null,null,null,null,null,null,null,null,null,null,null,null,3,null,null,null,null,null,null,null,null,null,null,null,null,null,null,null,"/"]
[null,null,null,null,null,null,null,null,null,null,null,null,null,4,null,null,null,null,null,null,null,null,null,null,null,null,null,null,null,"/"]
[null,null,null,null,null,null,null,null,null,null,null,null,null,5,null,null,null,null,null,null,null,null,null,null,null,null,null,null,null,"/"]
["料金明細サイト閲覧用\nID/パスワード\n通知送付先",null,null,null,null,null,"コピーリスト（必須）",null,null,null,null,null,null,null,null,null,null,null,null,null,null,null,null,null,null,null,null,null,null,null,null,null,null,"選択してください",null,null,null,null,null,null,null,null,null,null,null,null,null,null,null,null,null,null,null,null,"ID/PW通知先ｺﾋﾟｰﾘｽﾄ\n【条件付き書式】",{"$f":"AND(基本情報!$N$17<>\"端末追加\",$N$10<>\"利用しない\")","v":true}]
[null,null,null,null,null,null,"郵便番号（必須）",null,null,null,null,null,null,null,null,null,null,null,null,null,null,null,null,null,null,null,null,null,null,null,null,null,null,"半角数字7桁固定",null,null,null,null,null,null,null,null,null,null,null,null,null,null,null,null,null,null,null,null,"ID/PW通知先住所\n【条件付き書式】",{"$f":"AND($BD$16=TRUE,OR($N$16=\"次のとおり\",$N$16=\"\"))","v":true}]
[null,null,null,null,null,null,"ご住所（必須）",null,null,null,null,null,null,null,null,null,null,null,null,null,null,null,null,null,null,null,null,null,null,null,null,null,null,"全角46桁以内\n※住所を都道府県からご記入ください。"]
[null,null,null,null,null,null,"番地等（必須）",null,null,null,null,null,null,null,null,null,null,null,null,null,null,null,null,null,null,null,null,null,null,null,null,null,null,"全角20桁以内"]
[null,null,null,null,null,null,"ビル名等",null,null,null,null,null,null,null,null,null,null,null,null,null,null,null,null,null,null,null,null,null,null,null,null,null,null,"全角20桁以内"]
[null,null,null,null,null,null,"宛先",null,"会社名/お名前\n（必須）",null,null,null,null,null,null,null,null,null,null,null,null,null,null,null,null,null,null,null,null,null,null,null,null,"全角20桁以内",null,null,null,null,null,null,null,null,null,null,null,null,null,null,null,null,null,null,null,null,"ID/PW通知先宛先\n【条件付き書式】",{"$f":"AND(基本情報!$N$17<>\"端末追加\",$N$10<>\"利用しない\")","v":true}]
[null,null,null,null,null,null,null,null,"部課名",null,null,null,null,null,null,null,null,null,null,null,null,null,null,null,null,null,null,null,null,null,null,null,null,"全角20桁以内"]
[null,null,null,null,null,null,null,null,"担当者名\n（必須）",null,null,null,null,null,null,null,null,null,null,null,null,null,null,null,null,null,null,null,null,null,null,null,null,"全角10桁以内"]
[null,null,null,null,null,null,null,null,"電話番号\n（必須）",null,null,null,null,null,null,null,null,null,null,null,null,null,null,null,null,null,null,null,null,null,null,null,null,"ハイフンを含む半角10桁～13桁\n（数字、ハイフンのみ）"]
["端末送付先情報　　※ビジネスパックをご利用の場合は、ビジネスパック申込書に記入された送付先住所へ、端末とレンタルルータを同梱し、送付いたします。"]
["端末送付先住所",null,null,null,null,null,"コピーリスト（必須）",null,null,null,null,null,null,null,null,null,null,null,null,null,null,null,null,null,null,null,null,null,null,null,null,null,null,"選択してください",null,null,null,null,null,null,null,null,null,null,null,null,null,null,null,null,null,null,null,null,"端末送付先ｺﾋﾟｰリスト\n【条件付き書式】",{"$f":"$N$6<>\"利用する\"","v":true}]
[null,null,null,null,null,null,"郵便番号（必須）",null,null,null,null,null,null,null,null,null,null,null,null,null,null,null,null,null,null,null,null,null,null,null,null,null,null,"半角数字7桁固定",null,null,null,null,null,null,null,null,null,null,null,null,null,null,null,null,null,null,null,null,"端末送付先住所\n【条件付き書式】",{"$f":"AND($N$6<>\"利用する\",OR($N$26=\"\",$N$26=\"次のとおり\"))","v":true}]
[null,null,null,null,null,null,"ご住所（必須）",null,null,null,null,null,null,null,null,null,null,null,null,null,null,null,null,null,null,null,null,null,null,null,null,null,null,"全角46桁以内\n※住所を都道府県からご記入ください。"]
[null,null,null,null,null,null,"番地等（必須）",null,null,null,null,null,null,null,null,null,null,null,null,null,null,null,null,null,null,null,null,null,null,null,null,null,null,"全角20桁以内"]
[null,null,null,null,null,null,"ビル名等",null,null,null,null,null,null,null,null,null,null,null,null,null,null,null,null,null,null,null,null,null,null,null,null,null,null,"全角20桁以内"]
["端末送付先担当者",null,null,null,null,null,"会社名（必須）",null,null,null,null,null,null,null,null,null,null,null,null,null,null,null,null,null,null,null,null,null,null,null,null,null,null,"全角16桁以内",null,null,null,null,null,null,null,null,null,null,null,null,null,null,null,null,null,null,null,null,"端末送付先宛名\n【条件付き書式】",{"$f":"N6<>\"利用する\"","v":true}]
[null,null,null,null,null,null,"部課名",null,null,null,null,null,null,null,null,null,null,null,null,null,null,null,null,null,null,null,null,null,null,null,null,null,null,"全角16桁以内\n※部課名と担当者名は合計16桁以内でご記入ください"]
[null,null,null,null,null,null,"担当者名（必須）"]
[null,null,null,null,null,null,"電話番号（必須）",null,null,null,null,null,null,null,null,null,null,null,null,null,null,null,null,null,null,null,null,null,null,null,null,null,null,"ハイフンを含む半角10桁～13桁\n（数字、ハイフンのみ）"]

{"sheet":"端末SIM情報","index":2,"n_rows":20,"n_cols":97,"rows_kept":20,"cut":false,"hidden":false,"merged":[[0,78,0,81],[8,48,8,75],[9,64,9,75],[9,58,9,63],[9,48,9,57],[8,0,9,0],[8,1,9,4],[8,5,9,17],[8,18,9,31],[8,32,9,35],[9,43,9,47],[9,39,9,42],[9,36,9,38],[8,36,8,47],[1,0,2,75],[10,64,10,75],[10,58,10,63],[10,48,10,57],[10,43,10,47],[10,39,10,42],[10,36,10,38],[10,32,10,35],[10,18,10,31],[10,5,10,17],[10,1,10,4],[11,1,11,4],[11,5,11,17],[11,18,11,31],[11,32,11,35],[11,36,11,38],[11,39,11,42],[11,43,11,47],[11,48,11,57],[11,58,11,63],[11,64,11,75],[12,1,12,4],[12,5,12,17],[12,18,12,31],[12,32,12,35],[12,36,12,38],[12,39,12,42],[12,43,12,47],[12,48,12,57],[12,58,12,63],[12,64,12,75],[13,64,13,75],[14,1,14,4],[14,5,14,17],[14,18,14,31],[14,32,14,35],[14,36,14,38],[14,39,14,42],[14,43,14,47],[14,48,14,57],[14,58,14,63],[14,64,14,75],[13,1,13,4],[13,5,13,17],[13,18,13,31],[13,32,13,35],[13,36,13,38],[13,39,13,42],[13,43,13,47],[13,48,13,57],[13,58,13,63],[16,48,16,57],[16,58,16,63],[15,1,15,4],[15,5,15,17],[15,18,15,31],[15,32,15,35],[15,36,15,38],[15,39,15,42],[15,43,15,47],[15,48,15,57],[15,58,15,63],[19,1,19,4],[19,5,19,17],[19,18,19,31],[19,32,19,35],[19,36,19,38],[19,39,19,42],[19,43,19,47],[19,48,19,57],[19,58,19,63],[17,64,17,75],[18,1,18,4],[18,5,18,17],[18,18,18,31],[18,32,18,35],[18,36,18,38],[18,39,18,42],[18,43,18,47],[18,48,18,57],[18,58,18,63],[18,64,18,75],[17,1,17,4],[17,5,17,17],[17,18,17,31],[8,83,8,86],[8,90,8,96],[7,15,7,17],[6,1,6,75],[5,1,5,75],[7,8,7,14],[7,1,7,7],[19,64,19,75],[4,0,4,75],[17,32,17,35],[17,36,17,38],[17,39,17,42],[17,43,17,47],[17,48,17,57],[17,58,17,63],[15,64,15,75],[16,64,16,75],[16,1,16,4],[16,5,16,17],[16,18,16,31],[16,32,16,35],[16,36,16,38],[16,39,16,42],[16,43,16,47]]}
[null,null,null,null,null,null,null,null,null,null,null,null,null,null,null,null,null,null,null,null,null,null,null,null,null,null,null,null,null,null,null,null,null,null,null,null,null,null,null,null,null,null,null,null,null,null,null,null,null,null,null,null,null,null,null,null,null,null,null,null,null,null,null,null,null,null,null,null,null,null,null,null,null,null,null,{"$f":"基本情報!$AZ$1","v":"Ver.1.00A(2020/3/19)"},null,null,"＜個別対応用フラグ＞　★初期値は2とする"]
[{"$f":"基本情報!A3","v":"第６種オープンコンピュータ通信網サービス　契約申込書\nOCN モバイル ONE for Business"},null,null,null,null,null,null,null,null,null,null,null,null,null,null,null,null,null,null,null,null,null,null,null,null,null,null,null,null,null,null,null,null,null,null,null,null,null,null,null,null,null,null,null,null,null,null,null,null,null,null,null,null,null,null,null,null,null,null,null,null,null,null,null,null,null,null,null,null,null,null,null,null,null,null,null,null,null,"約款対象外","開案CSV","まなびポケット","端末調達",null,"ビジパク利用有無","固定IP利用有無","認証方式"]
[null,null,null,null,null,null,null,null,null,null,null,null,null,null,null,null,null,null,null,null,null,null,null,null,null,null,null,null,null,null,null,null,null,null,null,null,null,null,null,null,null,null,null,null,null,null,null,null,null,null,null,null,null,null,null,null,null,null,null,null,null,null,null,null,null,null,null,null,null,null,null,null,null,null,null,null,null,null,22,2,2,2,null,{"$f":"基本情報2!$N$6","v":0},{"$f":"基本情報2!$N$7","v":0},{"$f":"基本情報!$N$20","v":"個別ID"}]
[]
["端末/SIM情報",null,null,null,null,null,null,null,null,null,null,null,null,null,null,null,null,null,null,null,null,null,null,null,null,null,null,null,null,null,null,null,null,null,null,null,null,null,null,null,null,null,null,null,null,null,null,null,null,null,null,null,null,null,null,null,null,null,null,null,null,null,null,null,null,null,null,null,null,null,null,null,null,null,null,null,null,null,"サービスメニュー","コース\n【プルダウン制御用】","＜コース参照用＞\n総量規制","＜コース参照用＞\nテレワーク"]
[null,"規格、ご契約コース、ご購入端末機種名、台数、各種オプションの有無をご記入ください。\n総量規制/従量制プラン・速度制限プランについては同じ申込書ではお申込できませんのでご了承ください。",null,null,null,null,null,null,null,null,null,null,null,null,null,null,null,null,null,null,null,null,null,null,null,null,null,null,null,null,null,null,null,null,null,null,null,null,null,null,null,null,null,null,null,null,null,null,null,null,null,null,null,null,null,null,null,null,null,null,null,null,null,null,null,null,null,null,null,null,null,null,null,null,null,null,null,null,{"$f":"基本情報!N21","v":"総量規制サービス"},{"$f":"IF($CA$6=\"総量規制サービス\",CC6,IF($CA$6=\"速度上限サービス\",\"course4\",IF($CA$6=\"テレワーク・スタートパック\",CD6,IF($CA$6=\"まなびポケット\",\"course7\",\"null\"))))","v":"course2"},{"$f":"IF(AND($CA$6=\"総量規制サービス\",$CF$3=\"利用する\"),\"course1\",IF(AND($CA$6=\"総量規制サービス\",$CA$3=22),\"course2\",IF(AND($CA$6=\"総量規制サービス\",$CA$3=11),\"course3\",\"null\")))","v":"course2"},{"$f":"IF(AND($CA$6=\"テレワーク・スタートパック\",$CA$3=22),\"course5\",IF(AND($CA$6=\"テレワーク・スタートパック\",$CA$3=11),\"course6\",\"null\"))","v":"null"}]
[null,"1申込でお申込いただける機種台数は400台までとなります。\n国際ローミングをお申し込みの場合、利用停止目安額は渡航前に余裕を見込んだ金額で設定してください。"]
[null,"合計機種台数：",null,null,null,null,null,null,{"$f":"IF(SUM($AG$11:$AJ$20)=0,\"\",SUM($AG$11:$AJ$20))","v":""},null,null,null,null,null,null,"台"]
["No.","規格",null,null,null,"コース",null,null,null,null,null,null,null,null,null,null,null,null,"機種",null,null,null,null,null,null,null,null,null,null,null,null,null,"機種台数",null,null,null,"オプション",null,null,null,null,null,null,null,null,null,null,null,"NTTコミュニケーションズ使用欄",null,null,null,null,null,null,null,null,null,null,null,null,null,null,null,null,null,null,null,null,null,null,null,null,null,null,null,null,null,"↓INDIRECT関数にて参照し、プルダウン値を制御する","↓codeシート：SMS有無をVLOOKUPした結果を表示、入力規則にて参照","↓codeシート：国際RをVLOOKUPした結果を表示、入力規則にて参照",null,null,"「品名(OCN)」用　　　　※結合してAV列に表示※",null,null,null,null,"SIM種別用",null,"「料金プラン(MVMO)　　　※結合してBL列に表示※"]
[null,null,null,null,null,null,null,null,null,null,null,null,null,null,null,null,null,null,null,null,null,null,null,null,null,null,null,null,null,null,null,null,null,null,null,null,"SMS",null,null,"国際\nローミング",null,null,null,"国際ローミング\n限度額",null,null,null,null,"品名(OCN)",null,null,null,null,null,null,null,null,null,"SIM種別",null,null,null,null,null,"料金プラン(MVMO)",null,null,null,null,null,null,null,null,null,null,null,null,null,"機種\n【リスト制御用】","SMS\n【リスト制御用】","国際ローミング\n【リスト制御用】",null,null,"共通ID","IP種別","コース\n（200k表示）","規格",null,"【検索用文字列】",null,"基本のプラン名","コース","\"IP1\"文言有無","（カッコ）","規格","SMS\n/ビジパク","（カッコ）"]
[1,null,null,null,null,null,null,null,null,null,null,null,null,null,null,null,null,null,null,null,null,null,null,null,null,null,null,null,null,null,null,null,null,null,null,null,null,null,null,null,null,null,null,null,null,null,null,null,{"$f":"IF($AG11=\"\",\"\",CONCATENATE($CF11,$CG11,$CH11,$CI11))","v":""},null,null,null,null,null,null,null,null,null,{"$f":"IF(AND($CF$3=\"利用する\",S11=\"micro SIMのみ\"),\"[LTE]microSIM\",IF(ISERROR(VLOOKUP($CK11,変換!$J:$K,2,FALSE)=\"\"),\"\",VLOOKUP($CK11,変換!$J:$K,2,FALSE)))","v":""},null,null,null,null,null,{"$f":"IF($AG11=\"\",\"\",CONCATENATE($CM11,$CN11,$CO11,$CP11,$CQ11,$CR11,$CS11))","v":""},null,null,null,null,null,null,null,null,null,null,null,null,null,{"$f":"IF($CF$3=\"利用する\",\"Model1\",IF($CA$6=\"まなびポケット\",\"Model5\",IF($B11=\"LTE限定\",\"Model4\",IF($CA$6=\"テレワーク・スタートパック\",VLOOKUP(CONCATENATE($CD$3,$F11),変換!$A:$B,2,FALSE),IF($CA$3=11,\"Model3\",IF($CA$3=22,\"Model2\",\"null\"))))))","v":"Model2"},{"$f":"IF($CF$3=\"利用する\",\"2\",IF($CA$6=\"まなびポケット\",\"2\",IF(ISERROR(VLOOKUP($S11,変換!$D:$E,2,FALSE)=\"\"),\"null\",VLOOKUP($S11,変換!$D:$E,2,FALSE))))","v":"null"},{"$f":"IF($CF$3=\"利用する\",\"2\",IF(ISERROR(VLOOKUP($S11,変換!$G:$H,2,FALSE)=\"\"),\"null\",VLOOKUP($S11,変換!$G:$H,2,FALSE)))","v":"null"},null,null,{"$f":"IF($CH$3=\"共通ID\",\"モバイルONE共通ID\",IF($CH$3=\"個別ID\",\"モバイルONE\",\"\"))","v":"モバイルONE"},{"$f":"IF($CG$3=\"利用する\",\"IP1\",\"\")","v":""},{"$f":"IF($F11=\"200kbps\",\"200k\",\"\")","v":""},{"$f":"IF(COUNTIF($B11,\"*LTE*\")>0,\"(LTE)\",\"\")","v":""},null,{"$f":"CONCATENATE($B11,$AK11,$S11)","v":""},null,{"$f":"IF(OR($CA$6=\"テレワーク・スタートパック\",$CA$6=\"まなびポケット\",$CF$3=\"利用する\"),\"OCNモバイルONEforBusiness\",\"[docomo]OCNモバイルONEforBusiness\")","v":"[docomo]OCNモバイルONEforBusiness"},{"$f":"IF($F11=\"\",\"\",VLOOKUP($F11,変換!$M:$N,2,FALSE))","v":""},{"$f":"IF($CG$3=\"利用する\",\"IP1\",\"\")","v":""},"（",{"$f":"IF(COUNTIF($B11,\"*LTE*\")>0,\"LTE\",\"\")","v":""},{"$f":"IF($CA$6=\"テレワーク・スタートパック\",\")(SMS\",IF($CF$3=\"利用する\",\")(ビジネスパックVPN\",IF($AK11=\"有\",\",SMS\",\"\")))","v":""},{"$f":"IF(COUNTIF($F11,\"*2in1*\")>0,\"）2in1\",\"）\")","v":"）"}]
[2,null,null,null,null,null,null,null,null,null,null,null,null,null,null,null,null,null,null,null,null,null,null,null,null,null,null,null,null,null,null,null,null,null,null,null,null,null,null,null,null,null,null,null,null,null,null,null,{"$f":"IF($AG12=\"\",\"\",CONCATENATE($CF12,$CG12,$CH12,$CI12))","v":""},null,null,null,null,null,null,null,null,null,{"$f":"IF(ISERROR(VLOOKUP($CK12,変換!$J:$K,2,FALSE)=\"\"),\"\",VLOOKUP($CK12,変換!$J:$K,2,FALSE))","v":""},null,null,null,null,null,{"$f":"IF($AG12=\"\",\"\",CONCATENATE($CM12,$CN12,$CO12,$CP12,$CQ12,$CR12,$CS12))","v":""},null,null,null,null,null,null,null,null,null,null,null,null,null,{"$f":"IF($CF$3=\"利用する\",\"null\",IF($CA$6=\"まなびポケット\",\"Model5\",IF($B12=\"LTE限定\",\"Model4\",IF($CA$6=\"テレワーク・スタートパック\",VLOOKUP(CONCATENATE($CD$3,$F12),変換!$A:$B,2,FALSE),IF($CA$3=11,\"Model3\",IF($CA$3=22,\"Model2\",\"null\"))))))","v":"Model2"},{"$f":"IF($CF$3=\"利用する\",\"2\",IF($CA$6=\"まなびポケット\",\"2\",IF(ISERROR(VLOOKUP($S12,変換!$D:$E,2,FALSE)=\"\"),\"null\",VLOOKUP($S12,変換!$D:$E,2,FALSE))))","v":"null"},{"$f":"IF($CF$3=\"利用する\",\"2\",IF(ISERROR(VLOOKUP($S12,変換!$G:$H,2,FALSE)=\"\"),\"null\",VLOOKUP($S12,変換!$G:$H,2,FALSE)))","v":"null"},null,null,{"$f":"IF($CH$3=\"共通ID\",\"モバイルONE共通ID\",IF($CH$3=\"個別ID\",\"モバイルONE\",\"\"))","v":"モバイルONE"},{"$f":"IF($CG$3=\"利用する\",\"IP1\",\"\")","v":""},{"$f":"IF($F12=\"200kbps\",\"200k\",\"\")","v":""},{"$f":"IF(COUNTIF($B12,\"*LTE*\")>0,\"(LTE)\",\"\")","v":""},null,{"$f":"CONCATENATE($B12,$AK12,$S12)","v":""},null,{"$f":"IF(OR($CA$6=\"テレワーク・スタートパック\",$CA$6=\"まなびポケット\",$CF$3=\"利用する\"),\"OCNモバイルONEforBusiness\",\"[docomo]OCNモバイルONEforBusiness\")","v":"[docomo]OCNモバイルONEforBusiness"},{"$f":"IF($F12=\"\",\"\",VLOOKUP($F12,変換!$M:$N,2,FALSE))","v":""},{"$f":"IF($CG$3=\"利用する\",\"IP1\",\"\")","v":""},"（",{"$f":"IF(COUNTIF($B12,\"*LTE*\")>0,\"LTE\",\"\")","v":""},{"$f":"IF($CA$6=\"テレワーク・スタートパック\",\")(SMS\",IF($CF$3=\"利用する\",\")(ビジネスパックVPN\",IF($AK12=\"有\",\",SMS\",\"\")))","v":""},{"$f":"IF(COUNTIF($F12,\"*2in1*\")>0,\"）2in1\",\"）\")","v":"）"}]
[3,null,null,null,null,null,null,null,null,null,null,null,null,null,null,null,null,null,null,null,null,null,null,null,null,null,null,null,null,null,null,null,null,null,null,null,null,null,null,null,null,null,null,null,null,null,null,null,"",null,null,null,null,null,null,null,null,null,{"$f":"IF(ISERROR(VLOOKUP($CK13,変換!$J:$K,2,FALSE)=\"\"),\"\",VLOOKUP($CK13,変換!$J:$K,2,FALSE))","v":""},null,null,null,null,null,"",null,null,null,null,null,null,null,null,null,null,null,null,null,{"$f":"IF($CF$3=\"利用する\",\"null\",IF($CA$6=\"まなびポケット\",\"Model5\",IF($B13=\"LTE限定\",\"Model4\",IF($CA$6=\"テレワーク・スタートパック\",VLOOKUP(CONCATENATE($CD$3,$F13),変換!$A:$B,2,FALSE),IF($CA$3=11,\"Model3\",IF($CA$3=22,\"Model2\",\"null\"))))))","v":"Model2"},{"$f":"IF($CF$3=\"利用する\",\"2\",IF($CA$6=\"まなびポケット\",\"2\",IF(ISERROR(VLOOKUP($S13,変換!$D:$E,2,FALSE)=\"\"),\"null\",VLOOKUP($S13,変換!$D:$E,2,FALSE))))","v":"null"},{"$f":"IF($CF$3=\"利用する\",\"2\",IF(ISERROR(VLOOKUP($S13,変換!$G:$H,2,FALSE)=\"\"),\"null\",VLOOKUP($S13,変換!$G:$H,2,FALSE)))","v":"null"},null,null,"モバイルONE","","","",null,"",null,"[docomo]OCNモバイルONEforBusiness",{"$f":"IF($F13=\"\",\"\",VLOOKUP($F13,変換!$M:$N,2,FALSE))","v":""},"","（","","","）"]
[4,null,null,null,null,null,null,null,null,null,null,null,null,null,null,null,null,null,null,null,null,null,null,null,null,null,null,null,null,null,null,null,null,null,null,null,null,null,null,null,null,null,null,null,null,null,null,null,"",null,null,null,null,null,null,null,null,null,{"$f":"IF(ISERROR(VLOOKUP($CK14,変換!$J:$K,2,FALSE)=\"\"),\"\",VLOOKUP($CK14,変換!$J:$K,2,FALSE))","v":""},null,null,null,null,null,"",null,null,null,null,null,null,null,null,null,null,null,null,null,{"$f":"IF($CF$3=\"利用する\",\"null\",IF($CA$6=\"まなびポケット\",\"Model5\",IF($B14=\"LTE限定\",\"Model4\",IF($CA$6=\"テレワーク・スタートパック\",VLOOKUP(CONCATENATE($CD$3,$F14),変換!$A:$B,2,FALSE),IF($CA$3=11,\"Model3\",IF($CA$3=22,\"Model2\",\"null\"))))))","v":"Model2"},{"$f":"IF($CF$3=\"利用する\",\"2\",IF($CA$6=\"まなびポケット\",\"2\",IF(ISERROR(VLOOKUP($S14,変換!$D:$E,2,FALSE)=\"\"),\"null\",VLOOKUP($S14,変換!$D:$E,2,FALSE))))","v":"null"},{"$f":"IF($CF$3=\"利用する\",\"2\",IF(ISERROR(VLOOKUP($S14,変換!$G:$H,2,FALSE)=\"\"),\"null\",VLOOKUP($S14,変換!$G:$H,2,FALSE)))","v":"null"},null,null,"モバイルONE","","","",null,"",null,"[docomo]OCNモバイルONEforBusiness",{"$f":"IF($F14=\"\",\"\",VLOOKUP($F14,変換!$M:$N,2,FALSE))","v":""},"","（","","","）"]
[5,null,null,null,null,null,null,null,null,null,null,null,null,null,null,null,null,null,null,null,null,null,null,null,null,null,null,null,null,null,null,null,null,null,null,null,null,null,null,null,null,null,null,null,null,null,null,null,"",null,null,null,null,null,null,null,null,null,{"$f":"IF(ISERROR(VLOOKUP($CK15,変換!$J:$K,2,FALSE)=\"\"),\"\",VLOOKUP($CK15,変換!$J:$K,2,FALSE))","v":""},null,null,null,null,null,"",null,null,null,null,null,null,null,null,null,null,null,null,null,{"$f":"IF($CF$3=\"利用する\",\"null\",IF($CA$6=\"まなびポケット\",\"Model5\",IF($B15=\"LTE限定\",\"Model4\",IF($CA$6=\"テレワーク・スタートパック\",VLOOKUP(CONCATENATE($CD$3,$F15),変換!$A:$B,2,FALSE),IF($CA$3=11,\"Model3\",IF($CA$3=22,\"Model2\",\"null\"))))))","v":"Model2"},{"$f":"IF($CF$3=\"利用する\",\"2\",IF($CA$6=\"まなびポケット\",\"2\",IF(ISERROR(VLOOKUP($S15,変換!$D:$E,2,FALSE)=\"\"),\"null\",VLOOKUP($S15,変換!$D:$E,2,FALSE))))","v":"null"},{"$f":"IF($CF$3=\"利用する\",\"2\",IF(ISERROR(VLOOKUP($S15,変換!$G:$H,2,FALSE)=\"\"),\"null\",VLOOKUP($S15,変換!$G:$H,2,FALSE)))","v":"null"},null,null,"モバイルONE","","","",null,"",null,"[docomo]OCNモバイルONEforBusiness",{"$f":"IF($F15=\"\",\"\",VLOOKUP($F15,変換!$M:$N,2,FALSE))","v":""},"","（","","","）"]
[6,null,null,null,null,null,null,null,null,null,null,null,null,null,null,null,null,null,null,null,null,null,null,null,null,null,null,null,null,null,null,null,null,null,null,null,null,null,null,null,null,null,null,null,null,null,null,null,"",null,null,null,null,null,null,null,null,null,{"$f":"IF(ISERROR(VLOOKUP($CK16,変換!$J:$K,2,FALSE)=\"\"),\"\",VLOOKUP($CK16,変換!$J:$K,2,FALSE))","v":""},null,null,null,null,null,"",null,null,null,null,null,null,null,null,null,null,null,null,null,{"$f":"IF($CF$3=\"利用する\",\"null\",IF($CA$6=\"まなびポケット\",\"Model5\",IF($B16=\"LTE限定\",\"Model4\",IF($CA$6=\"テレワーク・スタートパック\",VLOOKUP(CONCATENATE($CD$3,$F16),変換!$A:$B,2,FALSE),IF($CA$3=11,\"Model3\",IF($CA$3=22,\"Model2\",\"null\"))))))","v":"Model2"},{"$f":"IF($CF$3=\"利用する\",\"2\",IF($CA$6=\"まなびポケット\",\"2\",IF(ISERROR(VLOOKUP($S16,変換!$D:$E,2,FALSE)=\"\"),\"null\",VLOOKUP($S16,変換!$D:$E,2,FALSE))))","v":"null"},{"$f":"IF($CF$3=\"利用する\",\"2\",IF(ISERROR(VLOOKUP($S16,変換!$G:$H,2,FALSE)=\"\"),\"null\",VLOOKUP($S16,変換!$G:$H,2,FALSE)))","v":"null"},null,null,"モバイルONE","","","",null,"",null,"[docomo]OCNモバイルONEforBusiness",{"$f":"IF($F16=\"\",\"\",VLOOKUP($F16,変換!$M:$N,2,FALSE))","v":""},"","（","","","）"]
[7,null,null,null,null,null,null,null,null,null,null,null,null,null,null,null,null,null,null,null,null,null,null,null,null,null,null,null,null,null,null,null,null,null,null,null,null,null,null,null,null,null,null,null,null,null,null,null,"",null,null,null,null,null,null,null,null,null,{"$f":"IF(ISERROR(VLOOKUP($CK17,変換!$J:$K,2,FALSE)=\"\"),\"\",VLOOKUP($CK17,変換!$J:$K,2,FALSE))","v":""},null,null,null,null,null,"",null,null,null,null,null,null,null,null,null,null,null,null,null,{"$f":"IF($CF$3=\"利用する\",\"null\",IF($CA$6=\"まなびポケット\",\"Model5\",IF($B17=\"LTE限定\",\"Model4\",IF($CA$6=\"テレワーク・スタートパック\",VLOOKUP(CONCATENATE($CD$3,$F17),変換!$A:$B,2,FALSE),IF($CA$3=11,\"Model3\",IF($CA$3=22,\"Model2\",\"null\"))))))","v":"Model2"},{"$f":"IF($CF$3=\"利用する\",\"2\",IF($CA$6=\"まなびポケット\",\"2\",IF(ISERROR(VLOOKUP($S17,変換!$D:$E,2,FALSE)=\"\"),\"null\",VLOOKUP($S17,変換!$D:$E,2,FALSE))))","v":"null"},{"$f":"IF($CF$3=\"利用する\",\"2\",IF(ISERROR(VLOOKUP($S17,変換!$G:$H,2,FALSE)=\"\"),\"null\",VLOOKUP($S17,変換!$G:$H,2,FALSE)))","v":"null"},null,null,"モバイルONE","","","",null,"",null,"[docomo]OCNモバイルONEforBusiness",{"$f":"IF($F17=\"\",\"\",VLOOKUP($F17,変換!$M:$N,2,FALSE))","v":""},"","（","","","）"]
[8,null,null,null,null,null,null,null,null,null,null,null,null,null,null,null,null,null,null,null,null,null,null,null,null,null,null,null,null,null,null,null,null,null,null,null,null,null,null,null,null,null,null,null,null,null,null,null,"",null,null,null,null,null,null,null,null,null,{"$f":"IF(ISERROR(VLOOKUP($CK18,変換!$J:$K,2,FALSE)=\"\"),\"\",VLOOKUP($CK18,変換!$J:$K,2,FALSE))","v":""},null,null,null,null,null,"",null,null,null,null,null,null,null,null,null,null,null,null,null,{"$f":"IF($CF$3=\"利用する\",\"null\",IF($CA$6=\"まなびポケット\",\"Model5\",IF($B18=\"LTE限定\",\"Model4\",IF($CA$6=\"テレワーク・スタートパック\",VLOOKUP(CONCATENATE($CD$3,$F18),変換!$A:$B,2,FALSE),IF($CA$3=11,\"Model3\",IF($CA$3=22,\"Model2\",\"null\"))))))","v":"Model2"},{"$f":"IF($CF$3=\"利用する\",\"2\",IF($CA$6=\"まなびポケット\",\"2\",IF(ISERROR(VLOOKUP($S18,変換!$D:$E,2,FALSE)=\"\"),\"null\",VLOOKUP($S18,変換!$D:$E,2,FALSE))))","v":"null"},{"$f":"IF($CF$3=\"利用する\",\"2\",IF(ISERROR(VLOOKUP($S18,変換!$G:$H,2,FALSE)=\"\"),\"null\",VLOOKUP($S18,変換!$G:$H,2,FALSE)))","v":"null"},null,null,"モバイルONE","","","",null,"",null,"[docomo]OCNモバイルONEforBusiness",{"$f":"IF($F18=\"\",\"\",VLOOKUP($F18,変換!$M:$N,2,FALSE))","v":""},"","（","","","）"]
[9,null,null,null,null,null,null,null,null,null,null,null,null,null,null,null,null,null,null,null,null,null,null,null,null,null,null,null,null,null,null,null,null,null,null,null,null,null,null,null,null,null,null,null,null,null,null,null,"",null,null,null,null,null,null,null,null,null,{"$f":"IF(ISERROR(VLOOKUP($CK19,変換!$J:$K,2,FALSE)=\"\"),\"\",VLOOKUP($CK19,変換!$J:$K,2,FALSE))","v":""},null,null,null,null,null,"",null,null,null,null,null,null,null,null,null,null,null,null,null,{"$f":"IF($CF$3=\"利用する\",\"null\",IF($CA$6=\"まなびポケット\",\"Model5\",IF($B19=\"LTE限定\",\"Model4\",IF($CA$6=\"テレワーク・スタートパック\",VLOOKUP(CONCATENATE($CD$3,$F19),変換!$A:$B,2,FALSE),IF($CA$3=11,\"Model3\",IF($CA$3=22,\"Model2\",\"null\"))))))","v":"Model2"},{"$f":"IF($CF$3=\"利用する\",\"2\",IF($CA$6=\"まなびポケット\",\"2\",IF(ISERROR(VLOOKUP($S19,変換!$D:$E,2,FALSE)=\"\"),\"null\",VLOOKUP($S19,変換!$D:$E,2,FALSE))))","v":"null"},{"$f":"IF($CF$3=\"利用する\",\"2\",IF(ISERROR(VLOOKUP($S19,変換!$G:$H,2,FALSE)=\"\"),\"null\",VLOOKUP($S19,変換!$G:$H,2,FALSE)))","v":"null"},null,null,"モバイルONE","","","",null,"",null,"[docomo]OCNモバイルONEforBusiness",{"$f":"IF($F19=\"\",\"\",VLOOKUP($F19,変換!$M:$N,2,FALSE))","v":""},"","（","","","）"]
[10,null,null,null,null,null,null,null,null,null,null,null,null,null,null,null,null,null,null,null,null,null,null,null,null,null,null,null,null,null,null,null,null,null,null,null,null,null,null,null,null,null,null,null,null,null,null,null,"",null,null,null,null,null,null,null,null,null,{"$f":"IF(ISERROR(VLOOKUP($CK20,変換!$J:$K,2,FALSE)=\"\"),\"\",VLOOKUP($CK20,変換!$J:$K,2,FALSE))","v":""},null,null,null,null,null,"",null,null,null,null,null,null,null,null,null,null,null,null,null,{"$f":"IF($CF$3=\"利用する\",\"null\",IF($CA$6=\"まなびポケット\",\"Model5\",IF($B20=\"LTE限定\",\"Model4\",IF($CA$6=\"テレワーク・スタートパック\",VLOOKUP(CONCATENATE($CD$3,$F20),変換!$A:$B,2,FALSE),IF($CA$3=11,\"Model3\",IF($CA$3=22,\"Model2\",\"null\"))))))","v":"Model2"},{"$f":"IF($CF$3=\"利用する\",\"2\",IF($CA$6=\"まなびポケット\",\"2\",IF(ISERROR(VLOOKUP($S20,変換!$D:$E,2,FALSE)=\"\"),\"null\",VLOOKUP($S20,変換!$D:$E,2,FALSE))))","v":"null"},{"$f":"IF($CF$3=\"利用する\",\"2\",IF(ISERROR(VLOOKUP($S20,変換!$G:$H,2,FALSE)=\"\"),\"null\",VLOOKUP($S20,変換!$G:$H,2,FALSE)))","v":"null"},null,null,"モバイルONE","","","",null,"",null,"[docomo]OCNモバイルONEforBusiness",{"$f":"IF($F20=\"\",\"\",VLOOKUP($F20,変換!$M:$N,2,FALSE))","v":""},"","（","","","）"]

{"sheet":"list","index":3,"n_rows":199,"n_cols":5,"rows_kept":199,"cut":false,"hidden":true,"merged":[]}
[null,"■リスト値一覧"]
[]
[null,"リスト名","名前定義","リスト値","備考"]
[null,"お申込み種別","ordertype","新設"]
[null,"お申込み種別","ordertype","端末追加"]
[null,"認証方式","authenticMethod","個別ID","-"]
[null,"認証方式","authenticMethod","共通ID","-"]
[null,"サービスメニュー","serviceMenu_1","総量規制サービス"]
[null,"サービスメニュー","serviceMenu_1","速度上限サービス"]
[null,"サービスメニュー","serviceMenu_1","テレワーク・スタートパック"]
[null,"サービスメニュー","serviceMenu_1","まなびポケット"]
[null,null,"serviceMenu_2","総量規制サービス"]
[null,null,"serviceMenu_2","速度上限サービス"]
[null,null,"serviceMenu_2","テレワーク・スタートパック"]
[null,null,"serviceMenu_3","総量規制サービス"]
[null,null,"serviceMenu_3","速度上限サービス"]
[null,"技術担当者連絡先コピーリスト","nwTechnologyCopylist","お申込みに関する連絡先と同じ"]
[null,"技術担当者連絡先コピーリスト","nwTechnologyCopylist","次のとおり"]
[null,"支払方法","paymentOption","請求書によるお支払"]
[null,"支払方法","paymentOption","既契約のお支払情報と同一にする"]
[null,"毎月の利用料の請求先コピーリスト","billMailingCopylist","ご契約者住所と同じ"]
[null,"毎月の利用料の請求先コピーリスト","billMailingCopylist","次のとおり"]
[null,"ご利用案内の送付先コピーリスト","kaianMailingAddressCopylist_1","ご契約者住所と同じ"]
[null,"ご利用案内の送付先コピーリスト","kaianMailingAddressCopylist_1","毎月の利用料の請求先と同じ"]
[null,"ご利用案内の送付先コピーリスト","kaianMailingAddressCopylist_1","次のとおり"]
[null,null,"kaianMailingAddressCopylist_2","ご契約者住所と同じ"]
[null,null,"kaianMailingAddressCopylist_2","次のとおり"]
[null,"ＩＤ/パスワード通知送付先コピーリスト","MeisaiAddressCopylist_1","ご契約者住所と同じ"]
[null,"ＩＤ/パスワード通知送付先コピーリスト","MeisaiAddressCopylist_1","毎月の利用料の請求先と同じ"]
[null,"ＩＤ/パスワード通知送付先コピーリスト","MeisaiAddressCopylist_1","ご利用案内の送付先住所と同じ"]
[null,"ＩＤ/パスワード通知送付先コピーリスト","MeisaiAddressCopylist_1","次のとおり"]
[null,"ＩＤ/パスワード通知送付先コピーリスト","MeisaiAddressCopylist_2","ご契約者住所と同じ"]
[null,"ＩＤ/パスワード通知送付先コピーリスト","MeisaiAddressCopylist_2","毎月の利用料の請求先と同じ"]
[null,"ＩＤ/パスワード通知送付先コピーリスト","MeisaiAddressCopylist_2","次のとおり"]
[null,"ＩＤ/パスワード通知送付先コピーリスト","MeisaiAddressCopylist_3","ご契約者住所と同じ"]
[null,"ＩＤ/パスワード通知送付先コピーリスト","MeisaiAddressCopylist_3","ご利用案内の送付先住所と同じ"]
[null,"ＩＤ/パスワード通知送付先コピーリスト","MeisaiAddressCopylist_3","次のとおり"]
[null,"ＩＤ/パスワード通知送付先コピーリスト","MeisaiAddressCopylist_4","ご契約者住所と同じ"]
[null,"ＩＤ/パスワード通知送付先コピーリスト","MeisaiAddressCopylist_4","次のとおり"]
[null,"付加サービス","option","利用する"]
[null,"付加サービス","option","利用しない"]
[null,"付加サービス","option_2","利用しない"]
[null,"端末送付先コピーリスト","terminalDeliveryCopylist","ご契約者住所と同じ"]
[null,"端末送付先コピーリスト","terminalDeliveryCopylist","毎月の利用料の請求先と同じ"]
[null,"端末送付先コピーリスト","terminalDeliveryCopylist","ご利用案内の送付先住所と同じ"]
[null,"端末送付先コピーリスト","terminalDeliveryCopylist","料金明細サイト閲覧用ID/パスワード通知先と同じ"]
[null,"端末送付先コピーリスト","terminalDeliveryCopylist","次のとおり"]
[null,"回線種別","customerDivision","法人"]
[null,"回線種別","customerDivision","個人"]
[null,"回線種別","customerDivision","外国公館等"]
[null,"回線種別","customerDivision","国・地方自治体"]
[null,"回線種別","customerDivision","業務用"]
[null,"料金に関する留意事項","individuallyChargeType","相対申込有"]
[null,"料金に関する留意事項","individuallyChargeType","型紙申込有"]
[null,"料金に関する留意事項","individuallyChargeType","無"]
[null,"規格","standard1","3G/LTE"]
[null,"規格","standard","LTE限定"]
[null,null,"standard2","3G/LTE"]
[null,"SMS/国際ローミング","terminalOption1","有"]
[null,"SMS/国際ローミング","terminalOption1","無"]
[null,"SMS/国際ローミング","terminalOption2","有"]
[null,"コース","-(全量のため。設定用のリスト地はcourse1~参照)","1GB"]
[null,"コース","-(全量のため。設定用のリスト地はcourse1~参照)","3GB"]
[null,"コース","-(全量のため。設定用のリスト地はcourse1~参照)","7GB"]
[null,"コース","-(全量のため。設定用のリスト地はcourse1~参照)","200kbps"]
[null,"コース","-(全量のため。設定用のリスト地はcourse1~参照)","30MBプラス"]
[null,"コース","-(全量のため。設定用のリスト地はcourse1~参照)","テレワーク3GB_1年"]
[null,"コース","-(全量のため。設定用のリスト地はcourse1~参照)","テレワーク7GB_1年"]
[null,"コース","-(全量のため。設定用のリスト地はcourse1~参照)","テレワーク2in1_3GB_1年"]
[null,"コース","-(全量のため。設定用のリスト地はcourse1~参照)","テレワーク2in1_7GB_1年"]
[null,"コース","-(全量のため。設定用のリスト地はcourse1~参照)","テレワーク3GB+1GB_3年"]
[null,"コース","-(全量のため。設定用のリスト地はcourse1~参照)","テレワーク7GB+1GB_3年"]
[null,"コース","-(全量のため。設定用のリスト地はcourse1~参照)","テレワーク2in1_3GB+1GB_3年"]
[null,"コース","-(全量のため。設定用のリスト地はcourse1~参照)","テレワーク2in1_7GB+1GB_3年"]
[null,"コース","-(全量のため。設定用のリスト地はcourse1~参照)","まなびポケット3GB"]
[null,"コース","-(全量のため。設定用のリスト地はcourse1~参照)","5GB"]
[null,"コース","-(全量のため。設定用のリスト地はcourse1~参照)","10GB"]
[null,"コース","-(全量のため。設定用のリスト地はcourse1~参照)","Unlimited"]
[null,"コース","-(全量のため。設定用のリスト地はcourse1~参照)","60MBプラス"]
[null,"コース","course1","1GB","ビジパク利用時"]
[null,"コース","course1","3GB"]
[null,"コース","course1","7GB"]
[null,"コース","course2","1GB","総量規制：約款対象外フラグがOff（22）の時"]
[null,"コース","course2","3GB"]
[null,"コース","course2","7GB"]
[null,"コース","course2","30MBプラス"]
[null,"コース","course3","5GB","総量規制：約款対象外フラグがON（11）の時"]
[null,"コース","course3","10GB"]
[null,"コース","course3","Unlimited"]
[null,"コース","course3","60MBプラス"]
[null,"コース","course4","200kbps","速度上限"]
[null,"コース","course5","テレワーク3GB_1年","テレワーク：約款対象外フラグがOff（22）の時"]
[null,"コース","course5","テレワーク7GB_1年"]
[null,"コース","course5","テレワーク2in1_3GB_1年"]
[null,"コース","course5","テレワーク2in1_7GB_1年"]
[null,"コース","course6","テレワーク3GB_1年","テレワーク：：約款対象外フラグがON（11）の時"]
[null,"コース","course6","テレワーク7GB_1年"]
[null,"コース","course6","テレワーク2in1_3GB_1年"]
[null,"コース","course6","テレワーク2in1_7GB_1年"]
[null,"コース","course6","テレワーク3GB+1GB_3年"]
[null,"コース","course6","テレワーク7GB+1GB_3年"]
[null,"コース","course6","テレワーク2in1_3GB+1GB_3年"]
[null,"コース","course6","テレワーク2in1_7GB+1GB_3年"]
[null,"コース","course7","まなびポケット3GB","まなびの時"]
[null,"機種","-(全量のため。設定用のリスト値はModel1~参照)","SIMのみ"]
[null,"機種","-(全量のため。設定用のリスト値はModel1~参照)","micro SIMのみ"]
[null,"機種","-(全量のため。設定用のリスト値はModel1~参照)","nano SIMのみ"]
[null,"機種","-(全量のため。設定用のリスト値はModel1~参照)","MP02LN(WiFiルータータイプ)"]
[null,"機種","-(全量のため。設定用のリスト値はModel1~参照)","MP02LN(WiFiルータータイプ)あんしん保証付"]
[null,"機種","-(全量のため。設定用のリスト値はModel1~参照)","MR05LN(クレードル有)"]
[null,"機種","-(全量のため。設定用のリスト値はModel1~参照)","MR05LN(クレードル有)あんしん保証付"]
[null,"機種","-(全量のため。設定用のリスト値はModel1~参照)","UX302NC-R(USBタイプ)"]
[null,"機種","-(全量のため。設定用のリスト値はModel1~参照)","UX302NC-R(USBタイプ)あんしん保証付"]
[null,"機種","-(全量のため。設定用のリスト値はModel1~参照)","RX210(M2Mルータータイプ)"]
[null,"機種","-(全量のため。設定用のリスト値はModel1~参照)","MR05LN(クレードル無)"]
[null,"機種","-(全量のため。設定用のリスト値はModel1~参照)","MR05LN(クレードル無)あんしん保証付"]
[null,"機種","-(全量のため。設定用のリスト値はModel1~参照)","テレワーク用PC_A","-"]
[null,"機種","-(全量のため。設定用のリスト値はModel1~参照)","テレワーク用PC_2in1_A","-"]
[null,"機種","-(全量のため。設定用のリスト値はModel1~参照)","テレワーク用PC_B"]
[null,"機種","-(全量のため。設定用のリスト値はModel1~参照)","テレワーク用PC_2in1_B"]
[null,"機種","-(全量のため。設定用のリスト値はModel1~参照)","テレワーク用PC_CSTM_A"]
[null,"機種","-(全量のため。設定用のリスト値はModel1~参照)","テレワーク用PC_CSTM_B"]
[null,"機種","-(全量のため。設定用のリスト値はModel1~参照)","テレワーク用PC_CSTM_C","-"]
[null,"機種","-(全量のため。設定用のリスト値はModel1~参照)","テレワーク用PC_CSTM_D","-"]
[null,"機種","-(全量のため。設定用のリスト値はModel1~参照)","テレワーク用PC_CSTM_E"]
[null,"機種","-(全量のため。設定用のリスト値はModel1~参照)","MP01LN(WiFiルータータイプ)"]
[null,"機種","-(全量のため。設定用のリスト値はModel1~参照)","MP01LN(WiFiルータータイプ)あんしん保証付"]
[null,"機種","-(全量のため。設定用のリスト値はModel1~参照)","AX220(M2Mルータータイプ)"]
[null,"機種","-(全量のため。設定用のリスト値はModel1~参照)","AX110 AC-ADP有(M2Mルータータイプ)","-"]
[null,"機種","-(全量のため。設定用のリスト値はModel1~参照)","AX110 AC-ADP無(M2Mルータータイプ)","-"]
[null,"機種","-(全量のため。設定用のリスト値はModel1~参照)","GX110(M2Mルータータイプ)"]
[null,"機種","-(全量のため。設定用のリスト値はModel1~参照)","MF112A(USBタイプ）"]
[null,"機種","-(全量のため。設定用のリスト値はModel1~参照)","MMLink3G（M2Mルータータイプ）"]
[null,"機種","Model1","micro SIMのみ","ビジパク利用時"]
[null,"機種","Model2","SIMのみ","3G/LTE：約款対象外フラグがOff（2）の時"]
[null,"機種","Model2","micro SIMのみ"]
[null,"機種","Model2","nano SIMのみ"]
[null,"機種","Model2","MP02LN(WiFiルータータイプ)"]
[null,"機種","Model2","MP02LN(WiFiルータータイプ)あんしん保証付"]
[null,"機種","Model2","MR05LN(クレードル有)"]
[null,"機種","Model2","MR05LN(クレードル有)あんしん保証付"]
[null,"機種","Model2","UX302NC-R(USBタイプ)"]
[null,"機種","Model2","UX302NC-R(USBタイプ)あんしん保証付"]
[null,"機種","Model2","RX210(M2Mルータータイプ)"]
[null,"機種","Model3","SIMのみ","3G/LTE：約款対象外フラグがON（1）の時"]
[null,"機種","Model3","micro SIMのみ"]
[null,"機種","Model3","nano SIMのみ"]
[null,"機種","Model3","MP02LN(WiFiルータータイプ)"]
[null,"機種","Model3","MP02LN(WiFiルータータイプ)あんしん保証付"]
[null,"機種","Model3","MR05LN(クレードル有)"]
[null,"機種","Model3","MR05LN(クレードル有)あんしん保証付"]
[null,"機種","Model3","UX302NC-R(USBタイプ)"]
[null,"機種","Model3","UX302NC-R(USBタイプ)あんしん保証付"]
[null,"機種","Model3","RX210(M2Mルータータイプ)"]
[null,"機種","Model3","MR05LN(クレードル無)"]
[null,"機種","Model3","MR05LN(クレードル無)あんしん保証付"]
[null,"機種","Model4","AX220(M2Mルータータイプ)","LTE限定"]
[null,"機種","Model5","SIMのみ","まなびの時"]
[null,"機種","Model5","micro SIMのみ"]
[null,"機種","Model5","nano SIMのみ"]
[null,"機種","Model7","テレワーク用PC_A","テレワーク_1年：端末調達フラグがOff（2）の時"]
[null,"機種","Model8","テレワーク用PC_A","テレワーク_1年：端末調達フラグがON（1）の時"]
[null,"機種","Model8","テレワーク用PC_CSTM_A"]
[null,"機種","Model8","テレワーク用PC_CSTM_B"]
[null,"機種","Model8","テレワーク用PC_CSTM_C"]
[null,"機種","Model8","テレワーク用PC_CSTM_D"]
[null,"機種","Model8","テレワーク用PC_CSTM_E"]
[null,"機種","Model9","テレワーク用PC_Ｂ","テレワーク_3年：端末調達フラグがOff（2）の時"]
[null,"機種","Model10","テレワーク用PC_Ｂ","テレワーク_3年：端末調達フラグがON（1）の時"]
[null,"機種","Model10","テレワーク用PC_CSTM_A"]
[null,"機種","Model10","テレワーク用PC_CSTM_B"]
[null,"機種","Model10","テレワーク用PC_CSTM_C"]
[null,"機種","Model10","テレワーク用PC_CSTM_D"]
[null,"機種","Model10","テレワーク用PC_CSTM_E"]
[null,"機種","Model11","テレワーク用PC_2in1_A","テレワーク2in1_1年の時"]
[null,"機種","Model12","テレワーク用PC_2in1_B","テレワーク2in1_3年の時"]
[null,"国際ローミング限度額","list_AppInterRoaLimit","5万円"]
[null,"国際ローミング限度額","list_AppInterRoaLimit","10万円"]
[null,"国際ローミング限度額","list_AppInterRoaLimit","20万円(推奨)"]
[null,"国際ローミング限度額","list_AppInterRoaLimit","30万円"]
[null,"国際ローミング限度額","list_AppInterRoaLimit","40万円"]
[null,"国際ローミング限度額","list_AppInterRoaLimit","50万円"]
[null,"国際ローミング限度額","list_AppInterRoaLimit","60万円"]
[null,"国際ローミング限度額","list_AppInterRoaLimit","70万円"]
[null,"国際ローミング限度額","list_AppInterRoaLimit","80万円"]
[null,"国際ローミング限度額","list_AppInterRoaLimit","90万円"]
[null,"国際ローミング限度額","list_AppInterRoaLimit","100万円"]
[null,"国際ローミング限度額","list_AppInterRoaLimit","制限なし"]
[]
[]
[]
[]
[]
[]
[]
[]
[]
[]
[null,"null","null"]

{"sheet":"変換","index":4,"n_rows":34,"n_cols":14,"rows_kept":34,"cut":false,"hidden":true,"merged":[]}
["■テレワークコース",null,null,"■SMS",null,null,"■国際ローミング",null,null,"■SIM種別",null,null,"■料金プランMBNO表示用"]
["テレワーク\n端末調達フラグ＋コース（検索用）","機種\n表示パターン",null,"SMS有無","1：選択可\n2：不可\n3：有のみ",null,"国際ローミング利用可否","1：利用可\n2：不可",null,"SIM種別検索用文字列\n（規格+SIMS+機種）","SIM種別",null,"コース","料金プランMVNO表示用\nコース"]
["1テレワーク3GB_1年","Model8",null,"RX210(M2Mルータータイプ)",1,null,"RX210(M2Mルータータイプ)",2,null,"3G/LTE無SIMのみ","[LTE]SIM",null,"1GB","1GB"]
["2テレワーク3GB_1年","Model7",null,"SIMのみ",1,null,"SIMのみ",1,null,"3G/LTE無micro SIMのみ","[LTE]microSIM",null,"3GB","3GB"]
["1テレワーク7GB_1年","Model8",null,"micro SIMのみ",1,null,"micro SIMのみ",1,null,"3G/LTE無nano SIMのみ","[LTE]nanoSIM",null,"7GB","7GB"]
["2テレワーク7GB_1年","Model7",null,"nano SIMのみ",1,null,"nano SIMのみ",1,null,"3G/LTE有SIMのみ","[LTE]SIM(SMS)",null,"200kbps","200kbps"]
["1テレワーク2in1_3GB_1年","Model11",null,"MR05LN(クレードル有)",2,null,"MR05LN(クレードル有)",1,null,"3G/LTE有micro SIMのみ","[LTE]microSIM(SMS)",null,"30MBプラス","30MBプラス"]
["2テレワーク2in1_3GB_1年","Model11",null,"MR05LN(クレードル有)あんしん保証付",2,null,"MR05LN(クレードル有)あんしん保証付",1,null,"3G/LTE有nano SIMのみ","[LTE]nanoSIM(SMS)",null,"テレワーク3GB_1年","テレワーク3GB_1年"]
["1テレワーク2in1_7GB_1年","Model11",null,"MR05LN(クレードル無)",2,null,"MR05LN(クレードル無)",1,null,"3G/LTESIMのみ","[LTE]SIM",null,"テレワーク2in1_3GB+1GB_3年","テレワーク3GB＋1GB_3年"]
["2テレワーク2in1_7GB_1年","Model11",null,"MR05LN(クレードル無)あんしん保証付",2,null,"MR05LN(クレードル無)あんしん保証付",1,null,"3G/LTEmicro SIMのみ","[LTE]microSIM",null,"テレワーク7GB_1年","テレワーク7GB_1年"]
["1テレワーク3GB+1GB_3年","Model10",null,"UX302NC-R(USBタイプ)",2,null,"UX302NC-R(USBタイプ)",1,null,"3G/LTEnano SIMのみ","[LTE]nanoSIM",null,"テレワーク7GB+1GB_3年","テレワーク7GB＋1GB_3年"]
["2テレワーク3GB+1GB_3年","Model9",null,"UX302NC-R(USBタイプ)あんしん保証付",2,null,"UX302NC-R(USBタイプ)あんしん保証付",1,null,"3G/LTEMR05LN(クレードル有)","[LTE]nanoSIM",null,"5GB","5GB"]
["1テレワーク7GB+1GB_3年","Model10",null,"MP01LN(WiFiルータータイプ)",2,null,"MP01LN(WiFiルータータイプ)",2,null,"3G/LTEMR05LN(クレードル有)あんしん保証付","[LTE]nanoSIM",null,"10GB","10GB"]
["2テレワーク7GB+1GB_3年","Model9",null,"MP01LN(WiFiルータータイプ)あんしん保証付",2,null,"MP01LN(WiFiルータータイプ)あんしん保証付",2,null,"3G/LTEMR05LN(クレードル無)","[LTE]nanoSIM",null,"Unlimited","Unlimited"]
["1テレワーク2in1_3GB+1GB_3年","Model12",null,"MP02LN(WiFiルータータイプ)",2,null,"MP02LN(WiFiルータータイプ)",1,null,"3G/LTEMR05LN(クレードル無)あんしん保証付","[LTE]nanoSIM",null,"60MBプラス","60MBプラス"]
["2テレワーク2in1_3GB+1GB_3年","Model12",null,"MP02LN(WiFiルータータイプ)あんしん保証付",2,null,"MP02LN(WiFiルータータイプ)あんしん保証付",1,null,"3G/LTEUX302NC-R(USBタイプ)","[LTE]microSIM",null,"まなびポケット3GB","3GBまなびポケット"]
["1テレワーク2in1_7GB+1GB_3年","Model12",null,"AX220(M2Mルータータイプ)",1,null,"AX220(M2Mルータータイプ)",2,null,"3G/LTEUX302NC-R(USBタイプ)あんしん保証付","[LTE]microSIM",null,"テレワーク2in1_3GB_1年","テレワーク3GB_1年"]
["2テレワーク2in1_7GB+1GB_3年","Model12",null,"テレワーク用PC_A",3,null,"テレワーク用PC_A",1,null,"3G/LTEMP02LN(WiFiルータータイプ)","[LTE]nanoSIM",null,"テレワーク2in1_7GB_1年","テレワーク7GB_1年"]
[null,null,null,"テレワーク用PC_B",3,null,"テレワーク用PC_B",1,null,"3G/LTEMP02LN(WiFiルータータイプ)あんしん保証付","[LTE]nanoSIM",null,"テレワーク2in1_3GB+1GB_3年","テレワーク3GB＋1GB_3年"]
[null,null,null,"テレワーク用PC_2in1_A",3,null,"テレワーク用PC_2in1_A",1,null,"3G/LTE無RX210(M2Mルータータイプ)","[LTE]SIM",null,"テレワーク2in1_7GB+1GB_3年","テレワーク7GB＋1GB_3年"]
[null,null,null,"テレワーク用PC_2in1_B",3,null,"テレワーク用PC_2in1_B",1,null,"3G/LTE有RX210(M2Mルータータイプ)","[LTE]SIM(SMS)"]
[null,null,null,"テレワーク用PC_CSTM_A",3,null,"テレワーク用PC_CSTM_A",1,null,"3G/LTE有テレワーク用PC_A","[LTE]nanoSIM(SMS)"]
[null,null,null,"テレワーク用PC_CSTM_B",3,null,"テレワーク用PC_CSTM_B",1,null,"3G/LTE有テレワーク用PC_B","[LTE]nanoSIM(SMS)"]
[null,null,null,"テレワーク用PC_CSTM_C",3,null,"テレワーク用PC_CSTM_C",1,null,"3G/LTE有テレワーク用PC_2in1_A","[LTE]microSIM(SMS)"]
[null,null,null,"テレワーク用PC_CSTM_D",3,null,"テレワーク用PC_CSTM_D",1,null,"3G/LTE有テレワーク用PC_2in1_B","[LTE]microSIM(SMS)"]
[null,null,null,"テレワーク用PC_CSTM_E",3,null,"テレワーク用PC_CSTM_E",1,null,"3G/LTE有テレワーク用PC_CSTM_A","[LTE]nanoSIM(SMS)"]
[null,null,null,null,null,null,null,null,null,"3G/LTE有テレワーク用PC_CSTM_B","[LTE]nanoSIM(SMS)"]
[null,null,null,null,null,null,null,null,null,"3G/LTE有テレワーク用PC_CSTM_C","[LTE]microSIM(SMS)"]
[null,null,null,null,null,null,null,null,null,"3G/LTE有テレワーク用PC_CSTM_D","[LTE]microSIM(SMS)"]
[null,null,null,null,null,null,null,null,null,"3G/LTE有テレワーク用PC_CSTM_E","[LTE]microSIM(SMS)"]
[null,null,null,null,null,null,null,null,null,"LTE限定MP01LN(WiFiルータータイプ)","[LTE]nanoSIM"]
[null,null,null,null,null,null,null,null,null,"LTE限定MP01LN(WiFiルータータイプ)あんしん保証付","[LTE]nanoSIM"]
[null,null,null,null,null,null,null,null,null,"LTE限定無AX220(M2Mルータータイプ)","[LTE]SIM"]
[null,null,null,null,null,null,null,null,null,"LTE限定有AX220(M2Mルータータイプ)","[LTE]SIM(SMS)"]

{"sheet":"改版履歴","index":5,"n_rows":0,"n_cols":0,"rows_kept":0,"cut":false,"hidden":true,"merged":[]}